bitfinex/quotes_ETHUSD_20240731
["timestamp","ask_amount","ask_price","bid_price","bid_amount"]
[1722443992677,0.6576617,3303.8,3303.2,3.02735]
[1722443993034,0.6576617,3303.8,3303.3,0.04945431]
[1722443993229,3.6844717,3303.8,3303.3,0.04945431]
[1722443993474,3.02673,3303.9,3303.2,5.45628]
[1722443993633,6.02668,3304.0,3303.2,5.45628]
[1722443993634,3.02682,3303.8,3303.2,5.45628]
[1722443993834,3.02682,3303.8,3303.3,0.04943066]
[1722443994278,6.02668,3304.0,3303.3,3.02727]
[1722443994447,3.0,3304.0,3303.4,3.07653586]
[1722443994642,3.0,3304.0,3303.5,3.02709]
[1722443994848,3.0,3304.0,3303.4,3.07651586]
[1722443994849,7.55772,3304.0,3303.4,3.07651586]
[1722443995066,7.55772,3304.0,3303.6,0.04932627]
[1722443995277,7.55772,3304.0,3303.5,3.07645107]
[1722443995450,7.55772,3304.0,3303.7,0.04929148]
[1722443995778,7.55772,3304.0,3303.8,0.0492567]
[1722443995979,7.55772,3304.0,3303.5,3.02709]
[1722443996283,4.53102,3304.0,3303.6,0.04932627]
[1722443996637,3.02679,3303.9,3303.6,0.04932627]
[1722443996832,3.02687,3303.8,3303.6,0.04932627]
[1722443997144,3.027,3303.6,3303.1,3.02741]
[1722443997343,3.02687,3303.8,3303.1,3.02741]
[1722443997344,6.05377,3303.8,3303.1,3.02741]
[1722443997602,3.02699,3303.7,3302.9,3.02759]
[1722443997756,3.02706,3303.6,3302.9,3.02759]
[1722443998137,3.02706,3303.6,3303.1,3.02744]
[1722443999082,3.02706,3303.6,3302.9,3.02756]
[1722443999433,3.02706,3303.6,3302.9,6.05512]
[1722443999633,3.02706,3303.6,3302.9,3.02756]
[1722443999872,3.02715,3303.5,3303.0,3.02754]
[1722444000732,3.329865,3303.5,3302.8,5.30134]
[1722444001068,3.02739,3303.2,3302.4,5.30012]
[1722444001268,3.0276,3303.0,3302.4,5.30012]
[1722444001507,3.02739,3303.2,3302.5,0.04964409]
[1722444001732,3.329815,3303.5,3302.5,0.11019906]
[1722444001940,3.329815,3303.5,3302.4,2.2721]
[1722444001941,3.02686,3303.8,3303.0,3.02754]
[1722444002217,3.02686,3303.8,3302.6,0.29877846]
[1722444002218,3.02686,3303.8,3303.2,5.50109]
[1722444002510,3.02673,3303.9,3303.2,5.50109]
[1722444002715,3.02689,3303.8,3303.3,0.04936564]
[1722444002913,6.02665,3304.0,3303.3,3.02726]
[1722444003111,6.858875,3304.0,3303.3,3.02726]
[1722444003430,6.858875,3304.0,3303.4,0.04933084]
[1722444003717,3.02674,3303.9,3303.3,3.02721]
[1722444004215,3.02674,3303.9,3303.4,0.04933084]
[1722444004416,3.0,3304.0,3303.4,0.04933084]
[1722444004417,3.02707,3303.6,3303.4,0.04933084]
[1722444004578,3.02709,3303.5,3302.9,3.02762]
[1722444004914,3.02709,3303.5,3303.0,3.07700004]
[1722444005088,3.02709,3303.5,3303.0,0.04947004]
[1722444005273,3.02696,3303.7,3303.0,3.02749]
[1722444005495,3.02687,3303.8,3303.2,3.0273]
[1722444005697,3.02687,3303.8,3303.3,0.04939224]
[1722444005903,3.02687,3303.8,3303.2,3.0273]
[1722444006111,3.02692,3303.7,3303.3,0.04939224]
[1722444006313,3.02692,3303.7,3303.2,3.0273]
[1722444006487,3.02677,3303.9,3303.2,3.0273]
[1722444006690,8.547,3304.4,3303.5,3.02707]
[1722444006691,3.0264,3304.3,3303.5,3.02707]
[1722444006873,3.02647,3304.2,3303.6,3.07618603]
[1722444007077,3.0,3304.1,3303.7,3.02689]
[1722444007276,6.2571,3304.4,3303.9,3.02669]
[1722444007572,3.02629,3304.4,3304.0,0.04913393]
[1722444007771,2.72252,3304.6,3303.7,3.02686]
[1722444007772,3.02624,3304.5,3303.7,3.02686]
[1722444007984,3.02624,3304.5,3303.9,3.0267]
[1722444008210,2.72252,3304.6,3304.0,0.04907777]
[1722444008211,3.02627,3304.4,3304.0,0.04907777]
[1722444008613,6.05192,3304.8,3304.0,0.04907777]
[1722444008924,9.28293,3304.9,3304.4,3.02625]
[1722444009077,9.28291,3304.9,3304.3,3.0263]
[1722444009278,6.2571,3304.9,3304.5,3.02614]
[1722444009473,6.2571,3304.9,3304.4,0.0488825]
[1722444009679,6.2571,3304.9,3304.5,0.04870589]
[1722444009982,3.02564,3305.1,3304.5,3.02615]
[1722444010291,3.0,3305.0,3304.6,0.04838149]
[1722444010893,3.02599,3304.7,3304.6,0.04838149]
[1722444011096,3.02599,3304.7,3304.2,2.4931]
[1722444011495,3.375,3305.2,3303.9,10.31667]
[1722444011496,3.02622,3304.5,3303.9,10.31667]
[1722444011713,3.02595,3304.8,3303.9,7.29]
[1722444012034,3.02594,3304.8,3304.0,3.13570545]
[1722444012204,3.02606,3304.7,3304.0,6.10173879]
[1722444012405,3.375,3305.2,3304.0,0.04854879]
[1722444012720,3.375,3305.2,3304.0,0.10907927]
[1722444012721,0.13121909,3305.1,3304.0,0.10907927]
[1722444012912,3.02611,3304.6,3304.1,3.02653]
[1722444013109,3.02611,3304.6,3304.0,0.10907927]
[1722444013110,6.05173,3304.9,3304.2,3.02643]
[1722444013286,3.02584,3304.9,3304.2,3.07493877]
[1722444013487,3.02591,3304.8,3304.2,3.07493877]
[1722444013793,3.02591,3304.8,3304.2,0.04850877]
[1722444013794,3.02601,3304.7,3304.2,0.04850877]
[1722444014000,3.02608,3304.6,3304.1,3.02646]
[1722444014304,3.02611,3304.6,3304.2,0.04850877]
[1722444014619,3.02635,3304.3,3303.8,3.02677]
[1722444014823,3.02604,3304.7,3304.3,0.04847399]
[1722444015021,3.02607,3304.7,3304.0,3.02656]
[1722444015187,3.02608,3304.6,3304.4,0.04843921]
[1722444015390,3.02586,3304.9,3304.1,3.02651]
[1722444015600,3.02586,3304.9,3304.0,3.02656]
[1722444015601,3.02614,3304.6,3304.2,0.04850877]
[1722444015924,3.02604,3304.7,3304.1,3.02653]
[1722444016225,3.02609,3304.6,3304.2,0.04850877]
[1722444016381,3.02618,3304.5,3304.2,0.04850877]
[1722444016585,3.02627,3304.4,3303.8,3.02676]
[1722444016815,0.302604,3304.6,3303.9,0.04861311]
[1722444017019,3.02642,3304.3,3303.9,0.04861311]
[1722444017287,3.02642,3304.3,3303.7,5.27749]
[1722444017524,3.02642,3304.3,3303.5,3.02704]
[1722444017695,3.0,3304.8,3303.3,3.02722]
[1722444017696,3.02672,3303.9,3303.8,0.04862426]
[1722444017897,3.02655,3304.1,3303.3,0.06054281]
[1722444018106,3.02655,3304.1,3303.8,0.04862426]
[1722444018323,3.02672,3303.9,3303.3,3.02719]
[1722444018536,3.02672,3303.9,3303.2,2.4623]
[1722444018889,3.631865,3304.1,3303.5,3.02703]
[1722444019090,3.631865,3304.1,3303.6,3.027]
[1722444019290,3.02637,3304.3,3303.6,3.02693]
[1722444019492,3.0,3304.2,3303.8,3.02675]
[1722444019714,3.02628,3304.4,3303.8,3.02674]
[1722444020023,6.02628,3304.4,3303.8,3.02674]
[1722444020187,3.02636,3304.3,3303.8,3.02674]
[1722444020827,4.254706,3304.3,3303.6,3.02694]
[1722444021150,4.254706,3304.3,3303.5,3.02707]
[1722444021151,3.02664,3304.0,3303.5,3.02707]
[1722444021634,3.02651,3304.2,3303.6,3.02694]
[1722444021846,3.02651,3304.2,3303.7,3.0269]
[1722444022028,1.228346,3304.3,3303.7,3.0269]
[1722444022195,1.228346,3304.3,3303.9,3.02671]
[1722444022391,0.924746,3304.3,3303.9,3.02669]
[1722444022646,3.0,3304.4,3303.9,3.02669]
[1722444022647,3.02627,3304.4,3303.9,3.02669]
[1722444022823,3.02627,3304.4,3303.7,3.02684]
[1722444023142,6.2571,3304.5,3303.8,3.02681]
[1722444023349,6.2571,3304.5,3304.2,3.02638]
[1722444023633,6.2571,3304.5,3304.2,3.02637]
[1722444023802,6.2571,3304.5,3304.3,3.02633]
[1722444024018,3.02598,3304.8,3304.1,3.02645]
[1722444024019,3.02607,3304.7,3304.1,3.02645]
[1722444024201,3.02624,3304.5,3303.9,2.3447]
[1722444024401,3.02638,3304.3,3303.6,3.02694]
[1722444024644,3.02618,3304.5,3303.8,3.02674]
[1722444024810,3.02618,3304.5,3303.9,3.02672]
[1722444025206,3.02646,3304.2,3303.7,3.02683]
[1722444025508,3.02646,3304.2,3303.6,4.058684]
[1722444025712,3.02646,3304.2,3303.6,7.085614]
[1722444025919,3.02646,3304.2,3303.6,7.085574]
[1722444026119,3.02646,3304.2,3303.7,3.0269]
[1722444026306,6.05262,3304.4,3303.7,3.0269]
[1722444026510,3.0262,3304.5,3303.9,3.02667]
[1722444026719,3.02594,3304.8,3304.1,3.02645]
[1722444026950,3.026,3304.7,3304.1,3.02645]
[1722444027147,0.60517,3304.8,3304.3,5.40454]
[1722444027148,3.6311,3304.8,3304.3,5.40454]
[1722444027450,3.375,3305.2,3304.4,3.02618]
[1722444027451,3.02581,3304.9,3304.4,3.02618]
[1722444028008,3.0259,3304.8,3304.3,2.3782]
[1722444028436,3.02581,3304.9,3304.3,4.90455]
[1722444028958,3.02597,3304.8,3304.3,1.8782]
[1722444029751,3.02599,3304.7,3304.2,3.02643]
[1722444029951,6.0517,3304.9,3304.2,3.02643]
[1722444030259,3.02592,3304.8,3304.2,3.02638]
[1722444030415,1.265757,3305.1,3304.4,3.02621]
[1722444030611,0.13117184,3305.0,3304.4,3.02621]
[1722444030811,3.0,3305.0,3304.4,3.02621]
[1722444031248,3.0,3305.0,3304.5,3.02617]
[1722444031480,3.0,3305.0,3304.5,3.07457739]
[1722444031939,3.0,3305.0,3304.5,3.10664394]
[1722444032135,3.02568,3305.1,3304.5,3.10664394]
[1722444032675,3.15691247,3305.0,3304.5,3.10664394]
[1722444032870,3.02568,3305.1,3304.5,3.10664394]
[1722444033056,6.05138,3305.1,3304.5,3.10664394]
[1722444033580,6.05137,3305.1,3304.5,3.10664394]
[1722444033875,3.02568,3305.1,3304.5,3.10664394]
[1722444034246,3.02576,3305.0,3304.5,3.10664394]
[1722444034769,3.02568,3305.1,3304.5,3.10664394]
[1722444034944,6.05139,3305.1,3304.5,3.10664394]
[1722444035275,3.02573,3305.0,3304.5,3.10664394]
[1722444036445,0.375,3305.2,3305.0,3.02563]
[1722444036684,0.375,3305.2,3305.1,8.52194994]
[1722444037015,0.375,3305.2,3305.1,8.54173526]
[1722444037294,0.375,3305.2,3305.1,9.09173526]
[1722444037501,0.0714,3305.2,3305.1,9.09173526]
[1722444037705,0.0714,3305.2,3305.1,10.30347479]
[1722444037843,0.0714,3305.2,3305.1,13.32909479]
[1722444038042,0.0714,3305.2,3305.1,16.02909479]
[1722444038280,0.0714,3305.2,3305.1,19.02909479]
[1722444039581,0.0714,3305.2,3305.1,16.32909479]
[1722444039796,0.0714,3305.2,3305.1,6.72785479]
[1722444040085,0.0714,3305.2,3305.1,8.54173526]
[1722444040671,0.0714,3305.2,3305.1,9.09173526]
[1722444043696,0.0714,3305.2,3305.1,14.81735526]
[1722444043905,0.0714,3305.2,3305.1,17.81735526]
[1722444046024,0.0714,3305.2,3305.1,20.84297526]
[1722444046227,0.0714,3305.2,3305.1,19.90165279]
[1722444046549,0.0714,3305.2,3305.1,22.92727279]
[1722444046819,0.0714,3305.2,3305.1,19.90165279]
[1722444049383,0.0714,3305.2,3305.1,22.92727279]
[1722444049584,0.0714,3305.2,3305.1,19.90165279]
[1722444049789,0.0714,3305.2,3305.1,22.92727279]
[1722444050408,1e-05,3305.2,3305.1,22.92727279]
[1722444051147,3.02358,3307.4,3305.9,2.4101]
[1722444051425,3.02364,3307.3,3306.7,3.0241]
[1722444051621,3.02364,3307.3,3306.7,6.04818]
[1722444051809,3.02364,3307.3,3306.8,3.10004748]
[1722444052178,8.7394,3307.5,3306.9,3.02396]
[1722444052478,8.4358,3307.5,3307.0,0.0759161]
[1722444052712,12.605161,3307.5,3307.0,0.0759161]
[1722444053019,10.122861,3307.5,3307.0,0.0759161]
[1722444053931,3.0233,3307.7,3307.0,3.16019079]
[1722444054094,6.0232,3307.8,3307.0,3.16019079]
[1722444054095,3.0234,3307.6,3307.0,0.0759161]
[1722444054302,3.0,3307.5,3307.0,0.0759161]
[1722444054633,3.02319,3307.8,3307.0,0.0759161]
[1722444054634,3.0,3307.7,3307.0,0.0759161]
[1722444054933,3.02288,3308.2,3307.1,0.06047063]
[1722444055247,3.02288,3308.2,3307.0,0.0759161]
[1722444055248,2.4352,3308.3,3307.7,3.02324]
[1722444055418,2.4352,3308.3,3307.8,3.02315]
[1722444055746,3.02251,3308.5,3307.8,3.09855348]
[1722444056030,3.02289,3308.1,3307.8,0.07540348]
[1722444056186,3.02289,3308.1,3307.5,3.02341]
[1722444056592,3.02289,3308.1,3307.6,0.07534803]
[1722444057957,3.0227,3308.3,3307.6,3.09867803]
[1722444058247,3.627014,3308.5,3307.6,3.09867803]
[1722444058248,3.02253,3308.5,3307.6,3.09867803]
[1722444058392,3.02253,3308.5,3307.7,3.63369926]
[1722444058596,3.02253,3308.5,3307.8,0.06045305]
[1722444058795,3.02235,3308.7,3308.0,3.02296]
[1722444058989,3.02235,3308.7,3308.0,3.08341305]
[1722444059362,3.02254,3308.5,3308.1,0.07516967]
[1722444059489,3.02262,3308.4,3308.1,0.07516967]
[1722444059990,3.02262,3308.4,3307.7,0.55]
[1722444060190,3.02242,3308.6,3307.9,0.06045306]
[1722444060406,3.02242,3308.6,3308.0,3.02289]
[1722444060626,1.147973,3308.7,3308.0,0.0746892]
[1722444060627,3.02288,3308.1,3308.0,0.0746892]
[1722444060811,8.53336,3308.1,3308.0,0.0746892]
[1722444061009,1.147973,3308.7,3307.7,3.02324]
[1722444061227,3.02288,3308.1,3308.0,0.07453885]
[1722444061546,3.02279,3308.2,3307.4,12.776]
[1722444061547,3.02314,3307.9,3307.4,7.29]
[1722444061759,1.147973,3308.7,3307.4,7.29]
[1722444061760,3.02316,3307.8,3307.4,7.29]
[1722444062042,3.02302,3308.0,3307.4,7.29]
[1722444062186,3.02291,3308.1,3307.4,10.31345]
[1722444062390,3.02321,3307.8,3307.4,7.29]
[1722444062637,3.02321,3307.8,3306.5,9.6641]
[1722444062638,3.0234,3307.6,3306.5,9.6641]
[1722444062821,3.02306,3307.9,3307.1,3.02377]
[1722444063026,3.02298,3308.0,3307.4,3.0235]
[1722444063198,0.604563,3308.1,3307.2,3.08415598]
[1722444063199,3.02307,3307.9,3307.2,3.08415598]
[1722444063393,3.02315,3307.8,3306.8,13.33805]
[1722444063704,3.02315,3307.8,3306.9,3.02397]
[1722444063931,3.02341,3307.6,3306.9,3.02397]
[1722444064310,3.02359,3307.4,3306.8,10.31406]
[1722444064530,3.02352,3307.4,3306.8,10.31406]
[1722444064693,0.3627633,3307.9,3306.8,7.29]
[1722444064893,3.02358,3307.4,3306.8,7.29]
[1722444065297,3.02361,3307.3,3306.8,7.29]
[1722444065494,3.02351,3307.5,3306.8,3.02406]
[1722444065740,3.02351,3307.5,3306.6,3.02424]
[1722444066042,3.02367,3307.3,3306.7,0.55]
[1722444066352,3.02391,3307.0,3306.4,7.29]
[1722444066530,3.02366,3307.3,3306.1,3.0247]
[1722444066841,3.02401,3306.9,3306.0,0.5435]
[1722444067049,3.02425,3306.6,3305.9,3.02483]
[1722444067261,3.02425,3306.6,3306.0,3.02478]
[1722444067393,3.02425,3306.6,3305.8,7.29]
[1722444067394,2.72065,3306.6,3305.8,7.29]
[1722444067588,3.0245,3306.4,3305.8,10.31497]
[1722444067805,2.72065,3306.6,3305.8,8.866021]
[1722444068007,3.02409,3306.8,3305.9,0.06048933]
[1722444068248,3.02392,3307.0,3306.2,3.02461]
[1722444068405,3.02412,3306.8,3306.2,3.02459]
[1722444068611,3.02392,3307.0,3305.8,8.866021]
[1722444068792,3.02392,3307.0,3306.3,3.02444]
[1722444068997,3.02383,3307.1,3306.5,3.02429]
[1722444069248,6.02389,3307.0,3306.3,3.02444]
[1722444069442,3.02404,3306.9,3306.1,3.02463]
[1722444069746,3.02404,3306.9,3305.9,1.7391041]
[1722444069949,3.02422,3306.7,3306.1,3.02464]
[1722444070108,3.02404,3306.9,3306.0,0.90291041]
[1722444070313,3.0,3307.0,3306.3,3.02445]
[1722444070530,3.0,3307.0,3306.4,0.06048073]
[1722444070704,6.0239,3307.0,3306.4,3.02438]
[1722444070903,3.0,3307.0,3306.5,3.02434]
[1722444071161,6.0238,3307.1,3306.5,3.02434]
[1722444071447,6.0238,3307.1,3306.0,3.92762041]
[1722444071448,3.02416,3306.7,3306.0,3.92762041]
[1722444071808,3.02394,3307.0,3306.4,3.02438]
[1722444072022,3.02398,3306.9,3306.2,3.02452]
[1722444072249,3.02398,3306.9,3306.3,3.02449]
[1722444072850,3.02389,3307.0,3306.4,0.06048258]
[1722444073156,3.02389,3307.0,3306.4,3.02443]
[1722444073514,3.02383,3307.1,3306.4,3.02443]
[1722444073718,3.0,3307.0,3306.4,3.02443]
[1722444073938,6.02395,3307.0,3306.4,3.08491075]
[1722444074322,6.02395,3307.0,3306.4,6.10926075]
[1722444074509,6.02395,3307.0,3306.4,3.08483075]
[1722444074710,3.0,3307.0,3306.6,3.02423]
[1722444074942,3.0,3307.1,3306.6,3.02423]
[1722444075144,5.9535,3307.5,3306.7,3.02413]
[1722444075347,3.02367,3307.3,3306.7,3.02413]
[1722444075506,8.97699,3307.5,3306.9,3.02396]
[1722444075707,3.02354,3307.4,3306.7,3.02409]
[1722444076007,3.02354,3307.4,3306.7,6.653029]
[1722444076210,6.04714,3307.4,3306.8,3.02405]
[1722444076568,3.02354,3307.4,3306.8,0.07336726]
[1722444076927,3.02354,3307.4,3306.7,0.604839]
[1722444076928,3.02372,3307.2,3306.7,0.604839]
[1722444077250,3.02372,3307.2,3306.8,0.07336726]
[1722444077456,3.02362,3307.3,3306.7,3.628979]
[1722444077762,5.9535,3307.5,3306.8,0.07336726]
[1722444077938,8.97696,3307.5,3307.0,3.02387]
[1722444078113,8.97696,3307.5,3306.8,0.07336726]
[1722444078314,8.97696,3307.5,3307.1,0.07326018]
[1722444078655,3.02353,3307.4,3307.2,0.07322449]
[1722444078956,3.02353,3307.4,3306.9,3.02391]
[1722444079260,3.02353,3307.4,3307.0,0.07329587]
[1722444079749,3.02363,3307.3,3307.0,0.07329587]
[1722444080057,4.223686,3307.3,3306.5,3.0243]
[1722444080208,3.02387,3307.1,3306.6,0.07331181]
[1722444080412,3.02363,3307.3,3306.6,0.07331181]
[1722444080631,3.02346,3307.5,3306.8,3.02401]
[1722444081058,3.02363,3307.3,3306.8,3.02401]
[1722444081269,3.02346,3307.5,3306.9,0.07320472]
[1722444081561,3.02346,3307.5,3306.9,3.02392]
[1722444082056,3.02346,3307.5,3306.2,7.29]
[1722444082057,3.02334,3307.6,3307.0,3.09699903]
[1722444082263,3.02334,3307.6,3307.1,3.02378]
[1722444082472,3.02334,3307.6,3307.2,0.07298262]
[1722444082473,2.71974,3307.6,3307.2,0.07298262]
[1722444082964,5.74316,3307.6,3307.2,0.07298262]
[1722444083112,5.74316,3307.6,3306.9,6.04788]
[1722444083313,5.74316,3307.6,3307.3,0.07294693]
[1722444083556,3.02348,3307.5,3306.9,3.02392]
[1722444083857,3.02348,3307.5,3307.0,0.07305399]
[1722444084859,3.02348,3307.5,3307.0,3.09693399]
[1722444085063,3.02334,3307.6,3307.0,0.07305399]
[1722444085374,3.0,3308.1,3307.4,3.02351]
[1722444085518,3.02306,3307.9,3307.3,3.02361]
[1722444085712,3.0,3307.8,3307.5,0.07287262]
[1722444086028,3.0,3307.8,3307.6,0.07283694]
[1722444086235,3.02302,3308.0,3307.3,3.02354]
[1722444086236,3.02302,3308.0,3307.5,3.02341]
[1722444086525,3.02302,3308.0,3307.6,0.07283694]
[1722444087153,3.0231,3307.9,3307.6,0.07283694]
[1722444087350,3.0231,3307.9,3307.3,6.04707]
[1722444087519,3.0231,3307.9,3307.7,0.07273638]
[1722444087720,3.02298,3308.0,3307.4,3.02346]
[1722444088278,3.02298,3308.0,3307.5,0.07280773]
[1722444088873,6.04604,3308.0,3307.5,0.07280773]
[1722444089168,3.02308,3307.9,3307.5,0.07280773]
[1722444089763,3.02277,3308.3,3307.6,3.02331]
[1722444089968,3.02284,3308.2,3307.6,3.02331]
[1722444090112,3.02284,3308.2,3307.7,0.07273638]
[1722444090310,3.02279,3308.2,3307.7,0.07273638]
[1722444090909,3.0,3308.4,3307.7,0.07273638]
[1722444091115,3.02315,3307.8,3307.7,0.07273638]
[1722444091362,3.602254,3308.4,3307.0,5.32315]
[1722444091363,3.02328,3307.7,3307.0,5.32318]
[1722444091569,3.02318,3307.8,3307.7,0.07273638]
[1722444091722,3.02318,3307.8,3307.3,3.02361]
[1722444091930,3.02318,3307.8,3307.7,0.07273638]
[1722444092281,3.02306,3307.9,3307.3,3.02355]
[1722444092433,3.02298,3308.0,3307.4,3.45911624]
[1722444092638,3.02298,3308.0,3307.4,3.39864841]
[1722444092888,3.02306,3307.9,3307.4,3.39864841]
[1722444094445,3.02315,3307.8,3307.4,0.37519841]
[1722444094649,3.02331,3307.7,3307.4,0.07284341]
[1722444094852,3.02275,3308.3,3306.9,3.628753]
[1722444094853,3.02343,3307.5,3306.9,3.628753]
[1722444095094,3.02343,3307.5,3307.0,0.07283279]
[1722444095381,3.02343,3307.5,3307.0,3.15712417]
[1722444095598,5.9535,3308.1,3307.0,0.07283279]
[1722444095599,8.97642,3308.1,3307.0,0.07283279]
[1722444095804,3.02361,3307.3,3307.0,0.07283279]
[1722444095942,3.02361,3307.3,3306.8,3.02405]
[1722444096147,3.02361,3307.3,3307.1,0.07272338]
[1722444096375,3.02361,3307.3,3306.8,3.877995]
[1722444096576,3.02361,3307.3,3307.2,0.07268769]
[1722444097093,3.02361,3307.3,3306.8,0.853945]
[1722444097391,2.72001,3307.3,3306.9,0.07279476]
[1722444098262,3.02346,3307.5,3306.9,0.07279476]
[1722444098459,3.02352,3307.4,3307.0,0.39507798]
[1722444098689,3.02361,3307.3,3307.1,0.07272338]
[1722444099104,3.02361,3307.3,3306.6,5.51539]
[1722444099303,3.02361,3307.3,3306.7,0.07286615]
[1722444099596,3.02361,3307.3,3306.8,3.02407]
[1722444099741,3.02371,3307.2,3306.8,0.86123261]
[1722444099948,3.02371,3307.2,3306.9,0.07279476]
[1722444100298,3.02388,3307.0,3306.4,10.31438]
[1722444100501,3.02388,3307.0,3306.5,3.64495259]
[1722444100786,3.02318,3307.8,3306.5,3.64495259]
[1722444100787,6.04802,3306.9,3306.5,0.07061259]
[1722444101183,3.02407,3306.8,3306.5,0.07061259]
[1722444101550,3.0242,3306.7,3306.5,0.07061259]
[1722444101785,3.02403,3306.9,3306.2,2.4615]
[1722444101944,3.02419,3306.7,3306.6,0.07057689]
[1722444102284,6.04843,3306.7,3306.6,0.07057689]
[1722444102490,3.02432,3306.6,3306.0,3.02477]
[1722444102689,3.02371,3307.2,3306.1,0.07075542]
[1722444102854,3.02371,3307.2,3305.8,2.2934]
[1722444102855,3.0246,3306.3,3305.8,2.2934]
[1722444103217,3.0246,3306.3,3305.4,7.29]
[1722444103218,3.02488,3306.0,3305.9,0.07082684]
[1722444103501,3.02488,3306.0,3305.0,10.31567]
[1722444103502,3.02505,3305.8,3305.0,12.78674]
[1722444103647,3.02505,3305.8,3305.2,3.02551]
[1722444103848,3.02505,3305.8,3305.3,0.38070343]
[1722444104047,3.02505,3305.8,3305.3,0.07104117]
[1722444104262,3.02505,3305.8,3305.1,3.02562]
[1722444104459,3.0251,3305.7,3305.2,0.0710769]
[1722444105647,3.02505,3305.8,3305.2,3.0965569]
[1722444106211,3.02465,3306.2,3305.2,0.0710769]
[1722444106505,3.02536,3305.4,3305.0,9.7611]
[1722444106794,3.02536,3305.4,3304.5,15.40614]
[1722444106795,3.02556,3305.2,3305.1,0.07111263]
[1722444107143,3.02556,3305.2,3304.6,2.2972]
[1722444107144,3.02562,3305.1,3304.6,2.2972]
[1722444107910,3.02572,3305.0,3304.4,3.02625]
[1722444108111,3.02572,3305.0,3304.2,5.44035]
[1722444108112,3.02581,3304.9,3304.5,0.302625]
[1722444108250,3.02581,3304.9,3304.3,3.02635]
[1722444108449,3.02562,3305.1,3304.4,3.0262]
[1722444108644,3.02562,3305.1,3304.5,0.0605146]
[1722444108888,3.02547,3305.3,3304.6,3.026]
[1722444109055,3.02553,3305.2,3304.6,3.026]
[1722444109259,3.02553,3305.2,3304.6,3.631225]
[1722444109459,3.0254,3305.4,3304.7,3.02596]
[1722444109661,3.02549,3305.3,3304.7,3.02596]
[1722444109878,3.02554,3305.2,3304.6,0.66573962]
[1722444110497,3.02554,3305.2,3304.6,3.631295]
[1722444111587,3.02563,3305.1,3304.6,0.605225]
[1722444111889,3.02563,3305.1,3304.3,3.0263]
[1722444111890,3.02589,3304.9,3304.3,3.0263]
[1722444112062,3.02589,3304.9,3304.4,0.55]
[1722444112261,3.02588,3304.9,3304.2,2.4139]
[1722444112563,2.72242,3304.7,3304.2,2.4139]
[1722444112771,2.72242,3304.7,3304.1,3.02646]
[1722444112945,2.72242,3304.7,3304.2,3.38960853]
[1722444113152,3.02588,3304.9,3304.2,3.38960853]
[1722444113578,3.02588,3304.9,3304.2,3.329086]
[1722444113780,3.02617,3304.6,3304.2,0.302646]
[1722444114310,3.02602,3304.7,3304.2,0.302646]
[1722444115264,6.05171,3304.9,3304.2,3.329066]
[1722444115488,3.02582,3304.9,3304.2,3.329066]
[1722444116117,5.32877,3305.1,3304.3,3.02634]
[1722444116250,6.05171,3304.9,3304.3,3.02634]
[1722444116455,5.9535,3305.3,3304.4,0.06052253]
[1722444116767,3.02558,3305.2,3304.5,5.43148]
[1722444117002,3.02579,3305.0,3304.1,8.45837]
[1722444117153,3.02599,3304.7,3304.6,0.07024609]
[1722444117484,3.02599,3304.7,3304.0,3.02662]
[1722444117665,3.02557,3305.2,3303.7,5.43224]
[1722444117666,3.02633,3304.4,3303.7,5.43224]
[1722444117854,3.02633,3304.4,3303.7,2.4054]
[1722444118053,3.02633,3304.4,3303.8,0.07096919]
[1722444118463,3.0265,3304.2,3303.8,0.07096919]
[1722444119264,3.0265,3304.2,3303.5,3.08753248]
[1722444119265,3.02648,3304.2,3303.5,3.08753248]
[1722444119454,3.02645,3304.2,3303.7,3.0269]
[1722444119658,3.02645,3304.2,3303.8,0.07096919]
[1722444119879,6.05298,3304.2,3303.6,3.33573325]
[1722444120154,3.02645,3304.2,3303.7,0.07100495]
[1722444120556,3.02631,3304.4,3303.7,3.09784495]
[1722444120857,3.02631,3304.4,3303.8,0.64940507]
[1722444121053,3.02652,3304.2,3303.9,0.07093343]
[1722444121490,3.02654,3304.1,3303.6,3.33567325]
[1722444121690,3.02654,3304.1,3303.7,0.07100495]
[1722444121853,3.02664,3304.0,3303.7,0.07100495]
[1722444122390,3.0264,3304.3,3303.7,0.07100495]
[1722444122595,3.0262,3304.5,3303.8,3.02674]
[1722444122765,3.02631,3304.4,3303.8,3.09770919]
[1722444122965,3.02616,3304.6,3303.8,3.09770919]
[1722444123211,8.97935,3304.9,3304.2,3.02639]
[1722444123443,2.4483,3305.2,3304.4,3.02625]
[1722444123444,5.47388,3305.2,3304.4,3.02625]
[1722444123580,5.47388,3305.2,3304.3,0.13131077]
[1722444123778,5.47388,3305.2,3304.6,3.02606]
[1722444123779,3.02558,3305.2,3304.6,3.02606]
[1722444123983,5.9535,3305.4,3304.4,3.57621]
[1722444124234,3.02572,3305.0,3304.7,0.07064743]
[1722444124387,3.02572,3305.0,3304.5,3.02617]
[1722444124584,3.02555,3305.2,3304.8,0.07061169]
[1722444124799,3.02573,3305.0,3304.4,3.57619]
[1722444125132,3.02573,3305.0,3304.5,0.07071892]
[1722444125722,3.02582,3304.9,3304.5,0.07071892]
[1722444125938,3.02562,3305.1,3304.5,3.09687892]
[1722444126154,8.9535,3305.4,3304.5,3.09687892]
[1722444126155,3.02559,3305.2,3304.5,3.09680892]
[1722444126340,3.02559,3305.2,3304.6,3.02603]
[1722444126510,3.02559,3305.2,3304.6,3.08654419]
[1722444126709,3.02559,3305.2,3304.7,0.07064743]
[1722444126951,11.97888,3305.4,3304.8,3.02589]
[1722444127134,3.0,3305.3,3304.8,3.02589]